Cogmind - Beta 9.6 @@@ ROGUE MODE // 2020.08.18 @ 23:38:59 Player: Sudoku Result: Destroyed by L-31 Rogue with Katana Performance ------------- Evolutions (0) 0 Regions Visited (4) 800 Robots Destroyed (4) 20 Value Destroyed (88) 88 Prototype IDs (22) 440 Alien Tech Used (0) 0 Bonus (300) 300 TOTAL SCORE: 1648 Bonus ------- Aligned with FarCom 300 Cogmind --------- Core Integrity 0/250 Matter 280/300 Energy 250/250 System Corruption 0% Temperature Cool (6) Movement Rolling (120) Ox4 Location -9/Mines Parts ------- > --- POWER (1) -------- Ion Engine > --- PROPULSION (2) --- Wheel Wheel > --- UTILITY (2) ------ Humpback > --- WEAPON (2) ------- Assault Rifle Light Assault Rifle > --- INVENTORY (24) --- Light Ion Engine Nuclear Core Reinforced Deuterium Engine Light Fission Core Aluminum Leg Aluminum Leg Compact Wheel Medium Storage Unit Large Storage Unit Large Storage Unit Medium Matter Pod (70) ECM Suite Improved Light Armor Plating EM Pulse Gun AWS/Autocannon Mini Grenade Launcher Peak State ------------ > --- POWER ------------ Ion Engine > --- PROPULSION ------- Aluminum Leg Aluminum Leg > --- UTILITY ---------- Large Storage Unit Large Storage Unit > --- WEAPON ----------- Assault Rifle Light Assault Rifle > --- INVENTORY -------- Light Ion Engine Nuclear Core Reinforced Deuterium Engine Light Fission Core Wheel Wheel Compact Wheel Medium Storage Unit Medium Matter Pod ECM Suite Improved Light Armor Plating EM Pulse Gun AWS/Autocannon Mini Grenade Launcher [Rating: 12] Favorites ----------- Power Ion Engine Engine Ion Engine Propulsion Aluminum Leg Leg Aluminum Leg Wheel Wheel Utility Large Storage Unit Device ECM Suite Storage Large Storage Unit Weapon Light Assault Rifle Ballistic Gun Light Assault Rifle Build | -11 -10 -10 -10 -9 ------- Run | Scr Mat Min Exi Min Slots Evolved . | . . . . . Power . | . . . . . Propulsion . | . . . . . Utility . | . . . . . Weapon . | . . . . . Parts Attached 14 | 7 2 2 3 . Power 1 | 1 . . . . Engine 1 | 1 . . . . Core . | . . . . . Reactor . | . . . . . Propulsion 5 | 2 . 1 2 . Treads . | . . . . . Leg 3 | 2 . 1 . . Wheel 2 | . . . 2 . Hover . | . . . . . Flight . | . . . . . Utility 6 | 2 2 1 1 . Device 1 | . 1 . . . Storage 5 | 2 1 1 1 . Processor . | . . . . . Hackware . | . . . . . Protection . | . . . . . Artifact . | . . . . . Weapon 2 | 2 . . . . Energy Gun . | . . . . . Energy Cannon . | . . . . . Ballistic Gun 2 | 2 . . . . Ballistic Cannon . | . . . . . Launcher . | . . . . . Special Weapon . | . . . . . Impact Weapon . | . . . . . Slashing Weapon . | . . . . . Piercing Weapon . | . . . . . Special Melee Weapon . | . . . . . Unidentified Prototypes . | . . . . . Parts Lost 1 | . . 1 . . Power . | . . . . . Propulsion 1 | . . 1 . . Utility . | . . . . . Weapon . | . . . . . Highest Loss Streak 1 | . . 1 . . Average Slot Usage (%) 95 | . 100 95 96 85 Engine 14 | . 14 14 14 14 Leg 21 | . 28 24 24 . Wheel 5 | . . . 3 28 Device 3 | . 13 8 . . Storage 20 | . 14 20 24 14 Ballistic Gun 28 | . 28 28 28 28 Naked Turns . | . . . . . Heaviest Build 88 | 14 25 40 88 88 Greatest Support 20 | 20 20 20 20 20 Greatest Overweight (x) 8 | . 1 2 8 4 Average Overweight (x) 1 | . . 1 1 4 Largest Inventory Capacity 24 | 6 10 16 24 24 Average Capacity 12 | 4 8 12 17 24 Most Carried 18 | 6 9 11 18 18 Average Carried 10 | 3 7 10 13 18 Final Capacity 24 | 6 10 16 24 24 Final Carried 18 | 6 9 11 18 18 Class Distribution -------------------- 80% | Mutant 19% | Hauler-Mutant Dominant Class ---------------- Mutant | -10/Materials Mutant | -10/Mines Mutant | -10/Exiles Hauler-Mutant | -9/Mines Resources | -11 -10 -10 -10 -9 ----------- Run | Scr Mat Min Exi Min Matter Collected 483 | 374 10 69 30 . Remotely . | . . . . . Salvage Created 204 | 128 . 76 . . Parts 10 | 4 . 6 . . Haulers Intercepted . | . . . . . Recyclers Shooed 1 | . . 1 . . Parts Field Recycled . | . . . . . Retrieved Matter . | . . . . . Parts Self-Destructed . | . . . . . Prevented . | . . . . . Kills | -11 -10 -10 -10 -9 ------- Run | Scr Mat Min Exi Min Combat Hostiles Destroyed 2 | . . 2 . . Guns 2 | . . 2 . . Classes Destroyed 3 | 2 . 1 . . Worker 1 | 1 . . . . Recycler 1 | 1 . . . . Grunt 2 | . . 2 . . Best Kill Streak 2 | 1 . 2 . . Combat Bots Only 2 | . . 2 . . Max Kills in Single Turn 1 | 1 . 1 . . Gunslinging . | . . . . . Exploded . | . . . . . Melee . | . . . . . Uniques/NPCs Destroyed . | . . . . . Combat | -11 -10 -10 -10 -9 -------- Run | Scr Mat Min Exi Min Damage Taken 668 | . 323 135 . 210 Core 267 | . 74 73 . 120 Absorbed by Shields . | . . . . . Core Remaining (%) 100 | 100 . . . . Volleys Fired 27 | 14 2 6 . 5 Largest 2 | 2 2 2 . 2 Hottest 40 | 40 40 40 . 40 Shots Fired 54 | 28 4 12 . 10 Gun 54 | 28 4 12 . 10 Cannon . | . . . . . Launcher . | . . . . . Special . | . . . . . Kinetic 54 | 28 4 12 . 10 Thermal . | . . . . . Explosive . | . . . . . Electromagnetic . | . . . . . Robot Hit Streak 9 | 9 5 6 . 6 Robot Miss Streak 2 | 2 1 1 . 1 Penetration Max . | . . . . . Secondary Targets . | . . . . . Shots Hit Robots 39 | 20 1 10 . 8 Core Hits 12 | 3 . 6 . 3 Critical Hits 1 | . . . . 1 Critical Kills . | . . . . . Critical Parts Destroyed 1 | . . . . 1 Melee Attacks . | . . . . . Impact . | . . . . . Slashing . | . . . . . Piercing . | . . . . . Sneak Attacks . | . . . . . Combat Hostiles . | . . . . . Follow-up Attacks . | . . . . . Damage Inflicted 412 | 197 10 113 . 92 Guns 412 | 197 10 113 . 92 Cannons . | . . . . . Explosions . | . . . . . Melee . | . . . . . Ramming . | . . . . . Kinetic 412 | 197 10 113 . 92 Thermal . | . . . . . Explosive . | . . . . . Electromagnetic . | . . . . . Impact . | . . . . . Slashing . | . . . . . Piercing . | . . . . . Highest Corruption . | . . . . . Average Corruption . | . . . . . Corruption Purged . | . . . . . Overload Shots . | . . . . . Overflow Damage . | . . . . . Projectiles . | . . . . . Explosions . | . . . . . Melee . | . . . . . Knockbacks . | . . . . . Impact . | . . . . . Kinetic . | . . . . . Secondary . | . . . . . Self-Inflicted Damage . | . . . . . Shots . | . . . . . Rammed . | . . . . . Targets Rammed . | . . . . . Kicked . | . . . . . Crushed . | . . . . . Highest Temperature 9 | . 9 9 . 6 Average Temperature 7 | . 8 9 . 6 Received Heat Transfer 237 | . 168 45 . 24 Siege Activations . | . . . . . Robots Corrupted . | . . . . . Combat Hostiles . | . . . . . Parts Fried . | . . . . . Impact Corruptions . | . . . . . Robots Melted . | . . . . . Combat Hostiles . | . . . . . Parts Melted . | . . . . . Heat Transferred . | . . . . . Parts Sabotaged . | . . . . . Parts Stolen . | . . . . . Parts Stripped . | . . . . . Power Chain Reactions . | . . . . . Missiles Intercepted . | . . . . . Alert | -11 -10 -10 -10 -9 ------- Run | Scr Mat Min Exi Min Peak Influence 59 | 10 51 59 . . Average Influence 16 | 4 28 53 . . Maximum Alert Level . | . . . . . Low Security (%) 100 | 100 100 100 . 100 Level 1 . | . . . . . Level 2 . | . . . . . Level 3 . | . . . . . Level 4 . | . . . . . Level 5 . | . . . . . High Security . | . . . . . Max Security . | . . . . . Squads Dispatched 2 | . 2 . . . Investigation 1 | . 1 . . . Extermination . | . . . . . Reinforcement 1 | . 1 . . . Assault . | . . . . . Garrison . | . . . . . Intercept . | . . . . . Construction Impeded . | . . . . . Haulers Reinforced . | . . . . . Stealth | -11 -10 -10 -10 -9 --------- Run | Scr Mat Min Exi Min Distress Signals . | . . . . . Communications Jammed . | . . . . . Distress Signals . | . . . . . Times Spotted 19 | . 13 4 . 2 Peak Tracking Total 11 | . 11 5 . 2 Tactical Retreats 1 | . 1 . . . Traps | -11 -10 -10 -10 -9 ------- Run | Scr Mat Min Exi Min Traps Triggered 2 | . 2 . . . Indirectly . | . . . . . Trap Hack Attempts . | . . . . . Triggered . | . . . . . Disarmed . | . . . . . Reprogrammed . | . . . . . Reused . | . . . . . Traps Extracted . | . . . . . Installed . | . . . . . Triggered . | . . . . . Machines | -11 -10 -10 -10 -9 ---------- Run | Scr Mat Min Exi Min Machines Disabled . | . . . . . Max in Single Turn . | . . . . . Machines Sabotaged . | . . . . . Garrisons Compromised . | . . . . . Overloaded Fab Kills . | . . . . . Fab Network Shutdowns . | . . . . . Hacking | -11 -10 -10 -10 -9 --------- Run | Scr Mat Min Exi Min Machines Accessed 2 | . 1 . 1 . Terminals 1 | . 1 . . . Fabricators . | . . . . . Repair Stations . | . . . . . Recycling Units . | . . . . . Scanalyzers . | . . . . . Garrison Access . | . . . . . Total Hacks 6 | . 5 . 1 . Successful 3 | . 2 . 1 . Failed 3 | . 3 . . . Catastrophic . | . . . . . Database Lockouts . | . . . . . Manual 2 | . 1 . 1 . Terminals 5 | . 5 . . . Fabricators . | . . . . . Repair Stations . | . . . . . Recycling Units . | . . . . . Scanalyzers . | . . . . . Garrison Access . | . . . . . Terminal Hacks 2 | . 1 . 1 . Locate Traps 1 | . 1 . . . EX-Prototype ID Bank 1 | . . . 1 . Fabricator Hacks . | . . . . . Repair Station Hacks . | . . . . . Recycling Unit Hacks . | . . . . . Scanalyzer . | . . . . . Garrison Access Hacks . | . . . . . Unauthorized Hacks 1 | . 1 . . . Terminals 1 | . 1 . . . Track 1 | . 1 . . . Fabricators . | . . . . . Repair Stations . | . . . . . Recycling Units . | . . . . . Scanalyzers . | . . . . . Garrison Access . | . . . . . Data Cores Recovered . | . . . . . Used . | . . . . . Hacking Detections 1 | . 1 . . . Full Trace Events . | . . . . . Feedback Events . | . . . . . Feedback Blocked . | . . . . . Robot Schematics Acquired . | . . . . . Robots Built . | . . . . . Matter . | . . . . . Time . | . . . . . Total Robot Build Rating . | . . . . . Part Schematics Acquired . | . . . . . Parts Built . | . . . . . Matter . | . . . . . Time . | . . . . . Total Part Build Rating . | . . . . . Parts Repaired . | . . . . . Time . | . . . . . Parts Recycled . | . . . . . Recycled Matter . | . . . . . Retrieved Matter . | . . . . . Retrieved Components . | . . . . . Parts Scanalyzed . | . . . . . Part Schematics Acquired . | . . . . . Parts Damaged . | . . . . . Bothacking | -11 -10 -10 -10 -9 ------------ Run | Scr Mat Min Exi Min Used RIF Installer . | . . . . . Robots Hacked . | . . . . . Non-combat . | . . . . . Combat . | . . . . . Robot Hacks Applied . | . . . . . Relay Couplers Released . | . . . . . Robots Rewired . | . . . . . Allies Hacked . | . . . . . Hacks Repelled . | . . . . . Allies | -11 -10 -10 -10 -9 -------- Run | Scr Mat Min Exi Min Total Allies . | . . . . . Largest Group . | . . . . . Highest-Rated Group . | . . . . . Highest-Rated Ally . | . . . . . Total Orders . | . . . . . Ally Attacks . | . . . . . Total Damage . | . . . . . Kills . | . . . . . Allies Corrupted . | . . . . . Allies Melted . | . . . . . Intel | -11 -10 -10 -10 -9 ------- Run | Scr Mat Min Exi Min Robot Analysis Total . | . . . . . Derelict Logs Recovered 1 | . . . . 1 Drone Launches . | . . . . . Drone Recoveries . | . . . . . Exploration | -11 -10 -10 -10 -9 ------------- Run | Scr Mat Min Exi Min Turns Passed 1054 | 269 182 71 434 98 Spaces Moved 679 | 181 121 32 275 70 Core 16 | 16 . . . . Treads . | . . . . . Legs 552 | 165 121 32 234 . Wheels 111 | . . . 41 70 Hover . | . . . . . Flight . | . . . . . Fastest Speed 50 | 50 120 150 120 120 Average Speed 134 | 113 139 155 147 120 Slowest Speed 240 | 120 150 180 240 120 Overloaded Moves . | . . . . . Propulsion Burnouts . | . . . . . Robots Hopped . | . . . . . Cave-ins Triggered . | . . . . . Exploration Rate (%) 26 | 7 31 10 63 20 Regions Visited 4 Branch Regions 3 Pre-discovered Areas . | . . . . . Known Exits Taken . | . . . . . Unknown Exits Taken 4 | 1 1 1 1 . Scrap Searched . | . . . . . Spaces Dug . | . . . . . Terrain Destroyed . | . . . . . Melee . | . . . . . Projectile . | . . . . . AOE . | . . . . . Actions | -11 -10 -10 -10 -9 --------- Run | Scr Mat Min Exi Min Total 779 | 219 132 42 311 75 Wait 5 | 5 . . . . Move 675 | 180 120 31 274 70 Hop . | . . . . . Pick Up 40 | 13 5 3 19 . Fast Attach . | . . . . . Attach 10 | 7 1 1 1 . Detach . | . . . . . Swap 4 | . 1 1 2 . Drop 18 | . 3 . 15 . Fire 27 | 14 2 6 . 5 Melee . | . . . . . Ram . | . . . . . Kick . | . . . . . Crush . | . . . . . Escape Stasis . | . . . . . Rewire . | . . . . . Trap . | . . . . . Miscellaneous . | . . . . . Route ------- -11/Scrapyard -10/Materials (discovered 2 exits: [*Mat] / [*Min]) -10/Mines -10/Exiles -9/Mines (discovered 1 exit: Mat) History --------- Turn | Location | Event 2 | -11/Scrapyard | Met Revision 17 4 | -11/Scrapyard | Discovered new exit (range 15) 270 | -11/Scrapyard | Entered Materials 308 | -10/Materials | Build established: Mutant 365 | -10/Materials | Discovered new exit (range 3) 435 | -10/Materials | Discovered new exit (range 12) 452 | -10/Materials | Entered Mines 453 | -10/Mines | Assembled infested the area 472 | -10/Mines | Core integrity fell below 50% 485 | -10/Mines | Met 8R-AWN 517 | -10/Mines | Discovered new exit (range 5) 523 | -10/Mines | Entered Exiles 564 | -10/Exiles | Welcomed by 8R-AWN 589 | -10/Exiles | Met EX-HEX 630 | -10/Exiles | Met EX-BIN 648 | -10/Exiles | Aligned with FarCom system 649 | -10/Exiles | Given EX-Vault access code 684 | -10/Exiles | Opened EX-Vault 695 | -10/Exiles | Found AWS/Autocannon 729 | -10/Exiles | Warned to stay clear of 0b10 Research branches 774 | -10/Exiles | Met EX-DEC 945 | -10/Exiles | Discovered new exit (range 11) 957 | -10/Exiles | Left Exiles lab with AWS/Autocannon 957 | -10/Exiles | Entered Mines 1027 | -9/Mines | Identified exit to Materials 1054 | -9/Mines | Core integrity fell below 20% 1055 | -9/Mines | Destroyed by L-31 Rogue with Katana Last Messages --------------- 00904_ Acquired EM Pulse Gun. 00906_ Acquired Lrg. Storage Unit. 00909_ Acquired Imp. Light Armor Plating. 00912_ Acquired Lgt. Ion Engine. 00914_ Acquired Lrg. Storage Unit. 00916_ Acquired Mni. Grenade Launcher. 00917_ Extracted 30 matter. 00919_ Acquired Com. Wheel. 00922_ Acquired Med. Storage Unit. 00924_ Acquired ECM Suite. 00926_ Acquired Med. Matter Pod. 00945_ EXIT=FOUND LOCATION=UNKNOWN GOAL=ESCAPE 00957_ Receiving FarCom transmissions... 01027_ Acquired derelict log, extracted data. 01038_ C-30 ARC bursts open, deploying its payload. 01038_ L-31 Rogue unfolds itself. 01047_ L-31 Rogue suffers critical hit. 01047_ Destroyed Imp. Aluminum Leg. Map ----- +----------------------------------------------------+ | ?????????????????????????????????????????????????? | | ?????????????????????????????????????????????????? | | ?????????????????????????????????????????????????? | | ?????????????????????????????????????????????????? | | ?????????????????????????????????????????????????? | | ?????????????????????????????????????????????????? | | ?????????????????????????????????????????????????? | | ?????????????????????????????????????????????????? | | ?????????????????????????????????????????????????? | | ?????????????????????????????????????????????????? | | ?????????????????????????????????????????????????? | | ?????????????????????????????????????????????????? | | ?????????????????????????????????????????????????? | | ??????????????????###????????????????????????????? | | ?????????????????? #????????????????????????????? | | ??????????????????# #????????????????????????????? | | ??????????????????# #????????????????????????????? | | ?????????????????## #???????#????????????????????? | | ????????????????## ###### #????????????????????? | | ??????????????### #????????????????????? | | ?????????????## #????????????????????? | | ?????????????# %#########????????????????????? | | ?????????????# ###??####???????????????????? | | ?????????????# g ### ##??????????????????? | | ?????????????## u ##?????????????????? | | ??????????????### l@ #?????????????????? | | ????????????????###### #?????????????????? | | ?????????????????????## ##?????????????????? | | ????????????????####### # ##??????????????????? | | ????????????????# #####???????????????????? | | ????????????????# ##### #???????????????????????? | | ??????????????????????# #???????????????????????? | | ??????????????????????# #???????????????????????? | | ???????????????????#### ##??????????????????????? | | ??????????????????## ##?????????????????????? | | ?????????????????## t #?????????????????????? | | ?????????????????# #?????????????????????? | | ?????????????????# ##?????????????????????? | | ?????????????????## ##?????????????????????? | | ?????????????????## #?????????????????????? | | ????????????????## #?????????????????????? | | ???????????????## ##?????????????????????? | | ????????######## ##??????????????????????? | | ???????## #???????????????????????? | | ????# ## ##???????????????????????? | | ????# ###????????????????????????? | | ????### ##??????????????????????????? | | ??????## ##???????????????????????????? | | ???????## ##????????????????????????????? | | ????????### ##????????????????????????????? | +----------------------------------------------------+ Best States ------------- Heat Dissipation 25 Energy Generation 10 Energy Capacity 250 Matter Stores 398 Matter Capacity 400 Sight Range 16 Terrain Scan Density 10 ECM Strength 1 Evasion (%) 50 Item Schematics ----------------- None Robot Schematics ------------------ None Fabricated ------------ Nothing Alien Tech Used ----------------- None Achievements -------------- None Challenges ------------ None Game ------ Seed SupersonicLightningAnalyzer Manual? 0 Play Time 00:14:06 Cumulative 62.5 hours Start 2020.08.18 @ 23:24:55 End 2020.08.18 @ 23:38:59 Sessions 1 Manual Loads 0 Difficulty Rogue Special Mode None Game No. 48 Rogue 48 Adventurer 0 Explorer 0 Win Type - Total 0 Types 0/0/0/0/0/0/0 Lore% 18 Gallery% 35 Achievement% 24 Wizard Run 0 Options --------- ASCII 0 Keyboard 0 Movement Mouse Keybinds 0 Fullscreen 0 Font 16/SmallcapsGlow Map View 76x50 Tactical HUD 1 Map Filters NONE Filters NONE Steam 1 RUN: d11f827a-8077-4817-ab33-65b29f0bbca4